bitfinex/quotes_BTCUSD_20250211
["timestamp","ask_amount","ask_price","bid_price","bid_amount"]
[1739302280642,0.00022408,95208.0,95207.0,0.26434401]
[1739302280843,0.00122408,95208.0,95207.0,0.0675]
[1739302281010,0.00122408,95208.0,95207.0,0.0605]
[1739302281419,0.00122408,95208.0,95207.0,0.0675]
[1739302281624,0.00122408,95208.0,95207.0,0.0605]
[1739302281816,0.00122408,95208.0,95207.0,0.0675]
[1739302282019,0.157522,95225.0,95207.0,0.0545]
[1739302282220,0.15765599,95225.0,95207.0,0.0545]
[1739302282380,0.001,95208.0,95207.0,0.0675]
[1739302282583,0.001,95208.0,95207.0,0.34300365]
[1739302282793,0.00013399,95225.0,95212.0,0.15]
[1739302282992,0.00013399,95225.0,95223.0,0.157524]
[1739302283197,0.00022387,95229.0,95223.0,0.2022406]
[1739302283400,0.00022387,95229.0,95223.0,0.14722025]
[1739302283654,0.00022387,95229.0,95225.0,0.15]
[1739302283893,0.00022387,95229.0,95226.0,0.10250365]
[1739302284100,0.00022387,95229.0,95227.0,0.307517]
[1739302284305,0.00022387,95229.0,95228.0,0.35851141]
[1739302284725,0.00022387,95229.0,95228.0,0.4391141]
[1739302285426,0.00022408,95238.0,95237.0,0.307501]
[1739302285576,0.00022408,95238.0,95237.0,0.44230734]
[1739302285988,0.00022408,95238.0,95237.0,0.44130734]
[1739302286183,0.00022408,95238.0,95237.0,0.54381099]
[1739302286668,0.00022387,95252.0,95239.0,0.15]
[1739302286878,0.00022387,95252.0,95237.0,0.23730999]
[1739302286879,0.00022387,95252.0,95241.0,0.15]
[1739302287084,0.00022387,95252.0,95244.0,0.157489]
[1739302287291,0.00022387,95252.0,95245.0,0.13480634]
[1739302287495,0.00022387,95252.0,95246.0,0.04422953]
[1739302287699,0.00022387,95252.0,95247.0,0.03230269]
[1739302287874,0.00022387,95252.0,95237.0,0.015]
[1739302288050,0.00022387,95252.0,95239.0,0.15]
[1739302288240,0.00022387,95252.0,95241.0,0.007]
[1739302288437,0.00022387,95252.0,95242.0,0.03224546]
[1739302288680,0.00022387,95252.0,95243.0,0.03224546]
[1739302288863,0.00122387,95251.0,95244.0,0.03224546]
[1739302289021,0.00122387,95251.0,95241.0,0.007]
[1739302289022,0.00122387,95251.0,95245.0,0.03224546]
[1739302289405,0.00022387,95251.0,95246.0,0.03224546]
[1739302289584,0.00122387,95251.0,95247.0,0.03224546]
[1739302289760,0.00122387,95251.0,95242.0,0.014]
[1739302289761,0.00113138,95251.0,95246.0,0.007]
[1739302289986,0.00113138,95251.0,95247.0,0.03224436]
[1739302290193,0.00013138,95251.0,95248.0,0.03224436]
[1739302290384,0.00013138,95251.0,95249.0,0.03224436]
[1739302290803,0.00013138,95251.0,95250.0,0.03224436]
[1739302291148,0.00013138,95251.0,95250.0,0.44222801]
[1739302291349,0.00013138,95251.0,95250.0,0.52895169]
[1739302291999,0.00013138,95251.0,95250.0,0.55195169]
[1739302292345,0.00013138,95251.0,95250.0,0.60025169]
[1739302292545,0.00022387,95252.0,95251.0,0.330478]
[1739302292751,0.00022387,95252.0,95251.0,0.46522601]
[1739302293958,0.00022387,95252.0,95251.0,0.47222601]
[1739302294530,0.00022387,95252.0,95251.0,0.44922601]
[1739302295031,0.00022387,95252.0,95251.0,0.46422601]
[1739302295032,0.00122387,95252.0,95251.0,0.46422601]
[1739302295432,0.00122387,95252.0,95251.0,0.48722601]
[1739302295653,0.00122387,95252.0,95251.0,0.60272966]
[1739302296059,0.00122387,95252.0,95251.0,0.60972966]
[1739302296330,0.00122387,95252.0,95251.0,0.60272966]
[1739302296533,0.00022408,95311.0,95267.0,0.359936]
[1739302296732,0.00022408,95311.0,95288.0,0.22302499]
[1739302296932,0.0006711,95302.0,95289.0,0.51693751]
[1739302297133,0.0006711,95302.0,95291.0,0.15741]
[1739302297456,0.0006711,95302.0,95292.0,0.03224436]
[1739302297677,0.0006711,95302.0,95293.0,0.10250365]
[1739302297896,0.0006711,95302.0,95294.0,0.08525191]
[1739302298109,0.0006711,95302.0,95295.0,0.157405]
[1739302298315,0.0006711,95302.0,95296.0,0.03224436]
[1739302298520,0.0006711,95302.0,95297.0,0.03224436]
[1739302298725,0.0006711,95302.0,95300.0,0.157397]
[1739302298987,0.0006711,95302.0,95301.0,0.13474801]
[1739302300458,0.0006711,95302.0,95301.0,0.28474801]
[1739302300675,0.15328,95357.0,95304.0,0.15]
[1739302300883,0.15328,95357.0,95310.0,0.22302499]
[1739302301093,0.157332,95340.0,95319.0,0.157365]
[1739302301308,0.157325,95344.0,95320.0,0.13474801]
[1739302301511,0.00024056,95348.0,95321.0,0.03224436]
[1739302301716,0.15732,95347.0,95325.0,0.157354]
[1739302301931,0.00024056,95348.0,95326.0,0.13474801]
[1739302302340,0.00024056,95348.0,95332.0,0.209791]
[1739302302548,0.00024056,95348.0,95333.0,0.13474801]
[1739302302794,0.00024056,95348.0,95334.0,0.03224436]
[1739302302998,0.00024056,95348.0,95338.0,0.157334]
[1739302303222,0.00024056,95348.0,95339.0,0.17377423]
[1739302303426,0.045,95371.0,95339.0,0.17377423]
[1739302303427,0.157294,95363.0,95340.0,0.209775]
[1739302303626,0.20972,95365.0,95341.0,0.10250365]
[1739302303849,0.209724,95364.0,95341.0,0.10250365]
[1739302304060,0.157297,95361.0,95342.0,0.05220667]
[1739302304267,0.10250365,95379.0,95343.0,0.10250365]
[1739302304444,0.10250365,95379.0,95347.0,0.15]
[1739302304693,0.157284,95369.0,95347.0,0.307319]
[1739302304900,0.01643591,95378.0,95348.0,0.10250365]
[1739302305102,0.157284,95369.0,95349.0,0.03365324]
[1739302305314,0.01643591,95378.0,95356.0,0.08402876]
[1739302305519,0.15727,95377.0,95357.0,0.10250365]
[1739302305741,0.00013383,95380.0,95357.0,0.10250365]
[1739302305952,0.157273,95376.0,95357.0,0.11275402]
[1739302306157,0.00013383,95380.0,95357.0,0.11275402]
[1739302306836,0.00013383,95380.0,95360.0,0.22302499]
[1739302307062,0.00013383,95380.0,95361.0,0.1347438]
[1739302307268,0.00013383,95380.0,95370.0,0.0454]
[1739302307471,0.00013383,95380.0,95371.0,0.14374375]
[1739302307682,0.00013383,95380.0,95373.0,0.157276]
[1739302307865,0.00013383,95380.0,95374.0,0.10250365]
[1739302308101,0.00013383,95380.0,95374.0,0.25977865]
[1739302308304,0.00013383,95380.0,95374.0,0.10250365]
[1739302308726,0.023,95377.0,95350.0,4e-05]
[1739302308978,0.15,95378.0,95350.0,4e-05]
[1739302308979,0.157313,95351.0,95350.0,4e-05]
[1739302309183,0.5250813,95351.0,95350.0,4e-05]
[1739302309810,0.80058495,95351.0,95350.0,4e-05]
[1739302310019,5.16058495,95351.0,95350.0,4e-05]
[1739302310241,2.04538495,95351.0,95350.0,4e-05]
[1739302310457,1.62298495,95351.0,95350.0,4e-05]
[1739302310662,0.80058495,95351.0,95350.0,4e-05]
[1739302310895,0.6750813,95351.0,95350.0,4e-05]
[1739302311105,0.5250813,95351.0,95350.0,0.00104]
[1739302311494,0.5250813,95351.0,95350.0,4e-05]
[1739302311697,0.3677683,95351.0,95350.0,4e-05]
[1739302312478,0.3787683,95351.0,95350.0,0.00104]
[1739302312884,0.3787683,95351.0,95350.0,0.00204]
[1739302313681,0.3677683,95351.0,95350.0,0.00104]
[1739302314230,0.3717683,95351.0,95350.0,4e-05]
[1739302314652,0.3677683,95351.0,95350.0,4e-05]
[1739302315077,0.3737683,95351.0,95350.0,0.00104]
[1739302315343,0.3737683,95351.0,95350.0,4e-05]
[1739302315592,0.3677683,95351.0,95350.0,0.00104]
[1739302315801,0.3707683,95351.0,95350.0,0.00104]
[1739302316332,0.5280813,95351.0,95350.0,0.00104]
[1739302316664,0.003,95351.0,95350.0,0.10354365]
[1739302316864,0.157313,95351.0,95350.0,0.03339201]
[1739302317065,0.157313,95351.0,95350.0,0.00104]
[1739302317291,0.5250632,95351.0,95350.0,0.00104]
[1739302317493,0.5250632,95351.0,95350.0,4e-05]
[1739302317666,0.5290632,95351.0,95350.0,0.00104]
[1739302318249,4.43285513,95351.0,95350.0,4e-05]
[1739302318471,0.157372,95315.0,95286.0,0.0467]
[1739302318687,0.5252631,95315.0,95314.0,0.08416282]
[1739302319098,0.5252631,95315.0,95314.0,0.00013406]
[1739302319518,0.3678911,95315.0,95314.0,0.03256377]
[1739302319727,0.157354,95327.0,95314.0,0.03256377]
[1739302319936,0.157354,95327.0,95315.0,0.03242971]
[1739302320147,0.3678331,95327.0,95316.0,0.03242971]
[1739302320359,0.01644074,95336.0,95316.0,0.13493336]
[1739302320569,0.01644074,95336.0,95317.0,0.21904165]
[1739302320772,0.01644074,95336.0,95318.0,0.13493336]
[1739302320987,0.157341,95334.0,95319.0,0.03242971]
[1739302321188,0.001,95327.0,95320.0,0.13493336]
[1739302321389,0.001,95327.0,95321.0,0.03242971]
[1739302321543,0.001,95327.0,95322.0,0.03242971]
[1739302321788,0.15735,95329.0,95323.0,0.03242971]
[1739302321789,0.3678008,95329.0,95323.0,0.03242971]
[1739302321989,0.3678008,95329.0,95324.0,0.03242971]
[1739302322191,0.3678008,95329.0,95325.0,0.03242971]
[1739302322405,0.3678008,95329.0,95326.0,0.03242971]
[1739302322559,0.3678008,95329.0,95327.0,0.03242971]
[1739302322766,0.02,95372.0,95320.0,0.10250365]
[1739302322767,0.0755,95363.0,95328.0,0.03242971]
[1739302322976,1.01470365,95358.0,95329.0,0.03242971]
[1739302323181,3.4414,95357.0,95330.0,0.03242971]
[1739302323386,0.209744,95354.0,95331.0,0.03242971]
[1739302323592,0.157325,95344.0,95332.0,0.03242971]
[1739302323802,0.3677779,95344.0,95333.0,0.03242971]
[1739302324000,0.3677779,95344.0,95334.0,0.03242971]
[1739302324249,0.3677779,95344.0,95335.0,0.03242971]
[1739302324487,0.3677779,95344.0,95319.0,0.29384876]
[1739302324488,0.3677779,95344.0,95336.0,0.03242971]
[1739302324690,0.3677779,95344.0,95337.0,0.03242971]
[1739302325084,0.3677779,95344.0,95338.0,0.03242971]
[1739302325381,0.157329,95342.0,95339.0,0.03242971]
[1739302325577,0.157329,95342.0,95340.0,0.03242971]
[1739302325784,0.5251039,95344.0,95341.0,0.03242971]
[1739302326010,0.5251039,95344.0,95342.0,0.03242971]
[1739302326208,0.3677779,95344.0,95336.0,0.004]
[1739302326417,0.3677779,95344.0,95337.0,0.03254208]
[1739302326620,0.157331,95341.0,95337.0,0.03254208]
[1739302326795,0.157331,95341.0,95338.0,0.03254208]
[1739302327008,0.157331,95341.0,95339.0,0.03254208]
[1739302327208,0.209768,95343.0,95340.0,0.03254208]
[1739302327384,0.157326,95343.0,95341.0,0.03254208]
[1739302327589,0.157326,95343.0,95342.0,0.03254208]
[1739302327997,2.97802965,95343.0,95342.0,0.03254208]
[1739302328205,0.157334,95338.0,95337.0,0.006]
[1739302328407,0.157359,95324.0,95304.0,0.30739]
[1739302328612,0.3678322,95324.0,95320.0,0.03258455]
[1739302328814,0.209784,95336.0,95321.0,0.03258455]
[1739302329011,0.209782,95337.0,95322.0,0.03258455]
[1739302329271,0.01643815,95338.0,95323.0,0.03258455]
[1739302329431,0.01643815,95338.0,95324.0,0.03258455]
[1739302329645,0.157353,95327.0,95325.0,0.03258455]
[1739302329841,0.5251838,95327.0,95326.0,0.03258455]
[1739302330242,0.3678308,95327.0,95326.0,0.03258455]
[1739302331201,0.2087,95369.0,95326.0,0.03258455]
[1739302331202,0.157337,95337.0,95326.0,0.03258455]
[1739302331408,0.54157275,95338.0,95326.0,0.04258455]
[1739302331629,0.3677996,95338.0,95327.0,0.03258455]
[1739302331845,0.5251336,95338.0,95328.0,0.03258455]
[1739302332058,0.157336,95337.0,95329.0,0.03258455]
[1739302332476,0.3677996,95338.0,95330.0,0.03258455]
[1739302332703,0.157323,95346.0,95331.0,0.03258455]
[1739302332913,0.0001064,95350.0,95332.0,0.06282867]
[1739302333118,0.157324,95345.0,95333.0,0.03258455]
[1739302333325,0.5250846,95345.0,95334.0,0.03258455]
[1739302333554,0.3677606,95345.0,95335.0,0.03258455]
[1739302333758,0.5775256,95345.0,95336.0,0.03258455]
[1739302333968,0.5775256,95345.0,95337.0,0.03258455]
[1739302334164,0.5775256,95345.0,95338.0,0.03258455]
[1739302334374,0.157326,95344.0,95339.0,0.03258455]
[1739302334584,0.157326,95344.0,95340.0,0.03258455]
[1739302334791,0.157325,95344.0,95341.0,0.03258455]
[1739302335198,0.3677606,95345.0,95342.0,0.03258455]
[1739302335406,0.157325,95344.0,95343.0,0.03258455]
[1739302335818,0.157326,95344.0,95335.0,0.002]
[1739302336030,0.0001064,95350.0,95340.0,0.209775]
[1739302336237,0.0001064,95350.0,95349.0,0.157316]
[1739302336448,0.0001064,95350.0,95349.0,0.52423291]
[1739302336664,0.0001064,95350.0,95349.0,0.5231843]
[1739302336873,0.0001064,95380.0,95353.0,0.15731]
[1739302337093,0.0001064,95380.0,95354.0,0.1351683]
[1739302337323,0.209689,95379.0,95355.0,0.03266465]
[1739302337542,0.157271,95377.0,95356.0,0.3449083]
[1739302337747,0.157274,95375.0,95357.0,0.18996665]
[1739302337957,0.157274,95375.0,95358.0,0.1351683]
[1739302338171,0.157272,95377.0,95359.0,0.03266465]
[1739302338375,0.157274,95375.0,95360.0,0.1351683]
[1739302338583,0.157272,95377.0,95361.0,0.03266465]
[1739302338786,0.22289775,95380.0,95362.0,0.03266465]
[1739302338993,0.157271,95377.0,95363.0,0.03266465]
[1739302339205,0.157272,95376.0,95364.0,0.03266465]
[1739302339413,0.01321075,95380.0,95364.0,0.03266465]
[1739302339627,0.01321075,95380.0,95365.0,0.03266465]
[1739302339846,0.023,95379.0,95353.0,0.001]
[1739302340046,0.157303,95357.0,95356.0,0.004]
[1739302340253,0.157303,95357.0,95350.0,0.08406876]
[1739302340254,0.157302,95358.0,95350.0,0.08406876]
[1739302340460,0.157303,95357.0,95350.0,0.08406876]
[1739302340693,0.3677061,95358.0,95350.0,4e-05]
[1739302340896,0.209739,95357.0,95350.0,4e-05]
[1739302341120,0.157307,95355.0,95350.0,4e-05]
[1739302341326,0.157304,95357.0,95353.0,0.001]
[1739302341763,0.3677061,95358.0,95356.0,0.005]
[1739302341764,0.5250081,95358.0,95356.0,0.005]
[1739302342139,0.157303,95357.0,95356.0,0.005]
[1739302342697,0.25377681,95357.0,95356.0,0.005]
[1739302342899,5.40628046,95357.0,95356.0,0.005]
[1739302343101,5.48508046,95357.0,95356.0,0.005]
[1739302343316,0.226013,95351.0,95350.0,0.00626344]
[1739302343650,0.32851665,95351.0,95350.0,0.00026344]
[1739302343782,0.209748,95353.0,95350.0,0.00626344]
[1739302343988,0.157313,95351.0,95350.0,0.00026344]
[1739302344917,0.166313,95351.0,95350.0,0.00126344]
[1739302345356,5.216313,95351.0,95350.0,0.00126344]
[1739302345568,5.46881665,95351.0,95350.0,0.00126344]
[1739302345767,5.54761665,95351.0,95350.0,0.00126344]
[1739302346191,5.56161665,95351.0,95350.0,0.00026344]
[1739302346392,5.56361665,95351.0,95350.0,0.00026344]
[1739302346804,4.04141931,95351.0,95350.0,0.00026344]
[1739302347034,2.36461931,95351.0,95350.0,0.00026344]
[1739302347237,1.62965849,95351.0,95350.0,0.00026344]
[1739302347436,1.02115583,95351.0,95350.0,0.00126344]
[1739302347628,0.86055583,95351.0,95350.0,0.00126344]
[1739302347848,0.78775583,95351.0,95350.0,0.00226344]
[1739302347986,0.34075218,95351.0,95350.0,0.00226344]
[1739302348416,0.03343918,95351.0,95350.0,0.00226344]
[1739302349012,0.02243918,95351.0,95350.0,0.00126344]
[1739302349462,0.006,95351.0,95350.0,0.10376709]
[1739302349764,0.157294,95363.0,95350.0,0.10276709]
[1739302349964,0.20972,95365.0,95351.0,0.10050365]
[1739302350573,0.157289,95366.0,95351.0,0.10050365]
[1739302350772,0.157289,95366.0,95351.0,0.08650365]
[1739302350996,0.157289,95366.0,95350.0,0.00126344]
[1739302351156,0.001,95365.0,95350.0,0.10376709]
[1739302351332,0.157289,95366.0,95350.0,0.10276709]
[1739302351546,0.004,95365.0,95351.0,0.02700891]
[1739302352065,0.157292,95364.0,95351.0,0.02600891]
[1739302352257,0.01643607,95372.0,95350.0,0.10276709]
[1739302352458,0.001,95365.0,95350.0,0.10276709]
[1739302352689,0.001,95365.0,95351.0,0.10250365]
[1739302353867,0.01643607,95372.0,95351.0,0.10350365]
[1739302354064,0.157287,95367.0,95351.0,0.10650365]
[1739302354288,0.209714,95368.0,95351.0,0.10650365]
[1739302354699,0.209714,95368.0,95351.0,0.10250365]
[1739302354931,0.157285,95368.0,95351.0,0.10650365]
[1739302355133,0.157282,95370.0,95351.0,0.10650365]
[1739302355306,0.157285,95369.0,95351.0,0.10650365]
[1739302355536,0.157285,95369.0,95352.0,0.04738461]
[1739302355755,0.157287,95367.0,95352.0,0.10250365]
[1739302355953,0.01643607,95372.0,95353.0,0.10355226]
[1739302356157,0.001,95372.0,95354.0,0.04674855]
[1739302356364,0.1573764,95377.0,95358.0,0.157301]
[1739302356537,0.15751223,95377.0,95359.0,0.15402851]
[1739302357039,0.00024023,95377.0,95359.0,0.10250365]
[1739302357264,0.001,95372.0,95359.0,0.10250365]
[1739302357385,0.00024023,95377.0,95359.0,0.10250365]
[1739302357583,0.00024023,95377.0,95354.0,0.0457]
[1739302357784,0.00024023,95377.0,95359.0,0.001]
[1739302358050,0.157297,95361.0,95359.0,0.005]
[1739302358244,0.1730267,95361.0,95359.0,0.005]
[1739302358479,0.5250311,95361.0,95359.0,0.001]
[1739302359026,0.157313,95351.0,95350.0,0.00026344]
[1739302359221,0.5250579,95351.0,95350.0,0.00026344]
[1739302359683,0.15,95350.0,95325.0,0.08402876]
[1739302359884,0.157354,95326.0,95325.0,0.08402876]
[1739302360157,0.5251808,95326.0,95325.0,0.08402876]
[1739302360300,0.157359,95323.0,95315.0,0.08402876]
[1739302360716,0.157359,95323.0,95306.0,0.0457]
[1739302361368,0.157359,95323.0,95322.0,0.0003575]
[1739302362111,0.157359,95323.0,95322.0,0.0073575]
[1739302362516,0.157359,95323.0,95322.0,0.0093575]
[1739302362719,0.17056524,95323.0,95322.0,0.0093575]
[1739302363342,0.17056524,95323.0,95322.0,0.0073575]
[1739302363541,0.42306889,95323.0,95322.0,0.0003575]
[1739302363877,5.49706889,95323.0,95322.0,0.0083575]
[1739302364085,5.49706889,95323.0,95322.0,0.0063575]
[1739302364216,5.49606889,95323.0,95322.0,0.0003575]
[1739302364627,5.49606889,95323.0,95322.0,0.0013575]
[1739302365036,5.49606889,95323.0,95322.0,0.0003575]
[1739302365235,5.49606889,95323.0,95322.0,0.0033575]
[1739302365462,5.51106889,95323.0,95322.0,0.0013575]
[1739302365854,5.63526889,95323.0,95322.0,0.0024575]
[1739302366719,5.63901711,95323.0,95322.0,0.0014575]
[1739302367062,5.65201711,95323.0,95322.0,0.0034575]
[1739302367482,5.64101711,95323.0,95322.0,0.0024575]
[1739302367687,5.65198641,95323.0,95322.0,0.0034575]
[1739302367900,5.66698641,95323.0,95322.0,0.0034575]
[1739302368302,5.40800624,95323.0,95322.0,0.0024575]
[1739302368514,5.42445113,95323.0,95322.0,0.0024575]
[1739302368721,0.307396,95301.0,95291.0,0.08402876]
[1739302368923,0.6852571,95301.0,95291.0,0.08402876]
[1739302369694,0.38442628,95301.0,95291.0,0.08402876]
[1739302369900,0.3679811,95301.0,95291.0,0.08402876]
[1739302370101,0.3679811,95301.0,95300.0,0.00204]
[1739302370306,0.01644413,95313.0,95300.0,0.12534]
[1739302370625,0.00013374,95323.0,95301.0,0.28817205]
[1739302370770,0.157361,95322.0,95301.0,0.13077805]
[1739302370970,0.00013374,95323.0,95301.0,0.13077805]
[1739302371375,0.157363,95321.0,95301.0,0.13077805]
[1739302371587,0.157365,95320.0,95301.0,0.10250365]
[1739302371787,0.157365,95320.0,95301.0,0.10950365]
[1739302371988,0.209815,95322.0,95301.0,0.26689865]
[1739302372415,0.157363,95321.0,95301.0,0.26889865]
[1739302372616,0.03683117,95320.0,95301.0,0.26689865]
[1739302372923,0.00113374,95323.0,95306.0,0.157386]
[1739302373122,0.00113374,95323.0,95307.0,0.10250365]
[1739302373573,0.00013374,95323.0,95307.0,0.10250365]
[1739302373813,0.001,95321.0,95308.0,0.00104909]
[1739302374025,0.001,95321.0,95309.0,0.10250365]
[1739302374238,0.00096,95321.0,95309.0,0.10250365]
[1739302374441,0.00013374,95323.0,95313.0,0.157375]
[1739302374642,0.00113374,95323.0,95314.0,0.10250365]
[1739302375090,0.00113374,95323.0,95314.0,0.25987765]
[1739302375307,0.00013374,95323.0,95314.0,0.3055096]
[1739302375724,0.00013374,95323.0,95314.0,0.1481356]
[1739302375931,0.157336,95337.0,95330.0,0.09786626]
[1739302376104,0.157346,95331.0,95330.0,0.09786626]
[1739302377139,0.36790129,95337.0,95330.0,0.09786626]
[1739302377309,0.157344,95333.0,95330.0,0.09786626]
[1739302377520,0.157342,95334.0,95330.0,0.09686626]
[1739302377695,0.209784,95336.0,95330.0,0.09686626]
[1739302377901,0.36790129,95337.0,95330.0,0.10655289]
[1739302378100,0.157342,95334.0,95330.0,0.10655289]
[1739302378298,0.157342,95334.0,95330.0,0.09686626]
[1739302378512,0.157346,95331.0,95330.0,0.09686626]
[1739302380257,0.157346,95331.0,95330.0,0.09786626]
[1739302380620,0.157346,95331.0,95330.0,0.09986626]
[1739302380818,0.1737859,95331.0,95330.0,0.09986626]
[1739302381040,0.1737859,95331.0,95330.0,0.09786626]
[1739302381244,0.0164399,95331.0,95330.0,0.09786626]
[1739302381448,0.001,95331.0,95330.0,0.10586626]
[1739302381943,0.36790129,95337.0,95330.0,0.09686626]
[1739302382146,0.36790129,95337.0,95331.0,0.10250365]
[1739302382378,8.889e-05,95337.0,95336.0,0.157338]
[1739302382588,8.889e-05,95337.0,95336.0,0.31679124]
[1739302383182,8.889e-05,95337.0,95330.0,0.09886626]
[1739302383426,8.889e-05,95337.0,95331.0,0.001]
[1739302384841,0.00108889,95337.0,95336.0,0.015]
[1739302385044,0.00108889,95337.0,95336.0,0.022]
[1739302385271,0.00108889,95337.0,95336.0,0.015]
[1739302385606,8.889e-05,95337.0,95331.0,0.001]
[1739302385757,8.889e-05,95337.0,95331.0,0.003]
[1739302386142,8.889e-05,95337.0,95330.0,0.09686626]
[1739302386774,8.889e-05,95337.0,95331.0,0.003]
[1739302387670,0.00108889,95337.0,95336.0,0.01]
[1739302388081,8.889e-05,95337.0,95320.0,0.209819]
[1739302388285,8.889e-05,95337.0,95331.0,0.003]
[1739302388889,8.889e-05,95337.0,95321.0,0.10250365]
[1739302389121,8.889e-05,95337.0,95336.0,0.003]
[1739302389325,0.15742489,95337.0,95321.0,0.10250365]
[1739302389530,8.889e-05,95337.0,95321.0,0.10250365]
[1739302389738,0.00108889,95337.0,95336.0,0.012]
[1739302390898,8.889e-05,95337.0,95330.0,0.00022344]
[1739302391103,0.00108889,95337.0,95330.0,0.00022344]
[1739302391310,0.00108889,95337.0,95336.0,0.004]
[1739302391715,8.889e-05,95337.0,95336.0,0.004]
[1739302391933,0.00108889,95337.0,95336.0,0.015]
[1739302392234,0.00108889,95337.0,95336.0,0.011]
[1739302393104,0.00108889,95337.0,95336.0,0.016]
[1739302393505,0.00108889,95337.0,95336.0,0.11850365]
[1739302394224,0.00108889,95337.0,95336.0,0.27584165]
[1739302394427,0.00108889,95337.0,95336.0,0.32442676]
[1739302394628,0.00108889,95337.0,95336.0,0.27584165]
[1739302394868,0.00108889,95337.0,95336.0,0.11850365]
[1739302396194,0.01681521,95348.0,95340.0,0.09577737]
[1739302396420,0.31696728,95350.0,95340.0,0.19828102]
[1739302396953,0.31696728,95350.0,95340.0,0.21554572]
[1739302397373,0.31696728,95350.0,95341.0,0.10250365]
[1739302397374,0.01640809,95348.0,95341.0,0.10250365]
[1739302398205,0.01640809,95348.0,95341.0,0.25983265]
[1739302398391,0.01640809,95348.0,95341.0,0.10250365]
[1739302398591,0.01640809,95348.0,95342.0,0.0200281]
[1739302398794,0.01640809,95348.0,95343.0,0.10250365]
[1739302399055,0.01640809,95348.0,95341.0,0.005]
[1739302399957,0.157328,95342.0,95341.0,0.005]
[1739302400125,0.157328,95342.0,95341.0,0.001]
[1739302400330,0.38513819,95348.0,95342.0,0.011]
[1739302400550,0.157326,95343.0,95342.0,0.015]
[1739302400850,0.157328,95342.0,95340.0,0.09577737]
[1739302401062,0.38413819,95348.0,95340.0,0.09577737]
[1739302401253,0.001,95342.0,95341.0,0.021]
[1739302401457,0.001,95342.0,95341.0,0.015]
[1739302401660,0.38413819,95348.0,95341.0,0.01107774]
[1739302401926,0.001,95343.0,95341.0,0.01107774]
[1739302402126,0.01640809,95348.0,95340.0,0.09577737]
[1739302403424,0.01640809,95348.0,95342.0,0.232727]
[1739302403700,0.01740809,95348.0,95343.0,0.10250365]
[1739302403894,0.001,95348.0,95343.0,0.10250365]
[1739302404088,0.0001064,95348.0,95343.0,0.10250365]
[1739302404221,0.0001064,95348.0,95343.0,0.160565]
[1739302404424,0.157308,95354.0,95350.0,0.09456457]
[1739302404625,0.3677053,95354.0,95350.0,0.09456457]
[1739302405023,0.209731,95361.0,95350.0,0.09456457]
[1739302405241,0.39378683,95365.0,95350.0,0.09356457]
[1739302405755,0.39378683,95365.0,95350.0,0.11437139]
[1739302405957,0.157302,95358.0,95350.0,0.11437139]
[1739302406161,0.157307,95355.0,95350.0,0.09356457]
[1739302406362,0.36771,95355.0,95350.0,0.09356457]
[1739302406606,0.36771,95355.0,95350.0,0.10056457]
[1739302406803,0.001,95354.0,95350.0,0.10056457]
[1739302407252,0.36771,95355.0,95350.0,0.09556457]
[1739302407406,0.157311,95353.0,95350.0,0.10256457]
[1739302407568,0.001,95355.0,95350.0,0.12107139]
[1739302407765,0.001,95355.0,95350.0,0.12307139]
[1739302408016,0.3677105,95356.0,95350.0,0.11607139]
[1739302408344,0.15731,95353.0,95350.0,0.09556457]
[1739302408486,0.157313,95351.0,95350.0,0.09560457]
[1739302408689,0.3677105,95356.0,95350.0,0.09560457]
[1739302408891,0.3677105,95356.0,95350.0,0.10260457]
[1739302408892,0.157313,95351.0,95350.0,0.10260457]
[1739302409097,0.157313,95351.0,95350.0,0.10060457]
[1739302410279,0.157313,95351.0,95350.0,0.09360457]
[1739302410482,0.157313,95351.0,95350.0,0.10560457]
[1739302410483,0.158313,95351.0,95350.0,0.10560457]
[1739302410681,0.158313,95351.0,95350.0,0.10360457]
[1739302410892,0.158313,95351.0,95350.0,0.09360457]
[1739302411067,0.157313,95351.0,95350.0,0.09460457]
[1739302411268,0.157313,95351.0,95350.0,0.09860457]
[1739302411507,0.49281665,95351.0,95350.0,0.09860457]
[1739302411714,0.52066496,95351.0,95350.0,0.01565291]
[1739302411891,5.57066496,95351.0,95350.0,0.01465291]
[1739302412025,5.59310449,95351.0,95350.0,0.02765291]
[1739302412232,5.93296537,95351.0,95350.0,0.02465291]
[1739302412471,5.90511706,95351.0,95350.0,0.02465291]
[1739302413298,5.90411706,95351.0,95350.0,0.01465291]
[1739302413502,0.157334,95338.0,95337.0,0.00022344]
[1739302413751,0.94452513,95338.0,95337.0,0.00022344]
[1739302414065,0.307346,95331.0,95312.0,0.08402876]
[1739302414345,0.83443053,95331.0,95312.0,0.08402876]
[1739302414701,5.88443053,95331.0,95312.0,0.08402876]
[1739302415305,5.88543053,95331.0,95312.0,0.08402876]
[1739302416026,0.382772,95315.0,95280.0,0.0451]
[1739302416236,0.307394,95302.0,95267.0,0.0798]
[1739302416438,0.307394,95302.0,95266.0,0.0451]
[1739302416439,5.48289765,95302.0,95301.0,0.03160485]
[1739302416638,5.48289765,95302.0,95266.0,0.0451]
[1739302416639,0.157427,95282.0,95266.0,0.0451]
[1739302416889,0.7049587,95282.0,95266.0,0.0451]
[1739302417100,0.209917,95276.0,95266.0,0.0451]
[1739302417306,0.157442,95273.0,95266.0,0.0451]
[1739302417508,0.3680317,95282.0,95266.0,0.0451]
[1739302417710,0.157442,95273.0,95266.0,0.0451]
[1739302417912,0.3680317,95282.0,95266.0,0.0451]
[1739302418321,0.158437,95276.0,95266.0,0.0451]
[1739302418469,0.001,95276.0,95266.0,0.0451]
[1739302418680,0.15744,95275.0,95266.0,0.0451]
[1739302418879,0.001,95276.0,95266.0,0.0451]
[1739302419043,0.157462,95261.0,95254.0,0.00022365]
[1739302419239,0.5255236,95261.0,95254.0,0.00022365]
[1739302420349,0.5255236,95261.0,95260.0,0.05560202]
[1739302420550,0.55337191,95261.0,95260.0,0.05560202]
[1739302420753,0.55337191,95261.0,95260.0,0.05160202]
[1739302420923,0.55337191,95261.0,95260.0,0.05460202]
[1739302420924,0.57050477,95261.0,95260.0,0.05460202]
[1739302421124,0.54365646,95261.0,95260.0,0.05560202]
[1739302421590,0.54365646,95261.0,95260.0,0.05860202]
[1739302422799,0.26924592,95261.0,95260.0,0.05860202]
[1739302423333,0.42670792,95261.0,95260.0,0.05860202]
[1739302423737,0.42392807,95261.0,95260.0,0.05860202]
[1739302423934,0.26646607,95261.0,95260.0,0.05860202]